[Event "CZE Extraliga 2019-20"]
[Site "Czech Republic"]
[Date "2019.10.12"]
[Round "1.1"]
[White "Kraus, Tomas"]
[Black "Gonda, Laszlo"]
[Result "1-0"]
[ECO "C47"]
[WhiteElo "2475"]
[BlackElo "2541"]
[Annotator "ChessBase"]
[PlyCount "51"]
[EventDate "2019.09.15"]
[EventType "team-tourn"]
[EventCountry "CZE"]
[SourceTitle "playchess.com"]
[Source "ChessBase"]
[SourceQuality "1"]
[WhiteTeam "Turnov"]
[BlackTeam "Kromeriz"]
[TimeControl "40/5400+30:1800+30"]

1. e4 {[%emt 0:00:00]} e5 {[%emt 0:00:00]} 2. Nf3 {[%emt 0:00:00]} Nc6 {[%emt 0:00:00]} 3. Nc3 {[%emt 0:00:59]} Nf6 {[%emt 0:00:05]} 4. d4 {[%emt 0:00:40]} exd4 {[%emt 0:01:02]} 5. Nxd4 {[%emt 0:00:06]} Bb4 {[%emt 0:02:40]} 6. Nxc6 {[%emt 0:00:19]} bxc6 {[%emt 0:00:05]} 7. Bd3 {[%emt 0:00:06]} O-O {[%emt 0:00:16]} 8. O-O {[%emt 0:00:19]} d5 {[%emt 0:01:17]} 9. exd5 {[%emt 0:00:30]} Bg4 {[%emt 0:01:02]} 10. f3 {[%emt 0:00:04]} Bh5 {[%emt 0:00:07]} 11. g4 {[%emt 0:00:21]} Bg6 {[%emt 0:22:06]} 12. Bxg6 {[%emt 0:00:20]} fxg6 {[%emt 0:01:07]} 13. dxc6 {[%emt 0:06:52]} Qe7 {[%emt 0:10:12]} 14. Qd3 {[%emt 0:17:18]} Qc5+ {[%emt 0:11:37]} 15. Be3 {[%emt 0:02:31]} Qxc6 {[%emt 0:00:02]} 16. Rad1 {[%emt 0:03:08]} Rfe8 {[%emt 0:04:53]} 17. Bd4 {[%emt 0:04:41]} a6 {[%emt 0:25:21]} 18. a3 {[%emt 0:05:42]} Bf8 {[%emt 0:02:47]} 19. b4 {[%emt 0:28:00]} Rad8 {[%emt 0:01:34]} 20. Rf2 {[%emt 0:06:56]} Kh8 {[%emt 0:05:57]} 21. Re2 {[%emt 0:00:46]} Rxe2 {[%emt 0:00:29]} 22. Nxe2 {[%emt 0:00:30]} Qe6 {[%emt 0:01:22]} 23. Nf4 {[%emt 0:03:04]} Qc6 {[%emt 0:01:03]} 24. g5 {[%emt 0:02:03]} Nd7 {[%emt 0:01:55]} 25. Bb2 {[%emt 0:05:02]} Bd6 {[%emt 0:01:45]} 26. Bxg7+ {[%emt 0:01:01]} 1-0

[Event "CZE Extraliga 2019-20"]
[Site "Czech Republic"]
[Date "2019.10.12"]
[Round "1.2"]
[White "Zhigalko, Andrey"]
[Black "Hracek, Zbynek"]
[Result "1/2-1/2"]
[ECO "D35"]
[WhiteElo "2543"]
[BlackElo "2555"]
[Annotator "ChessBase"]
[PlyCount "75"]
[EventDate "2019.09.15"]
[EventType "team-tourn"]
[EventCountry "CZE"]
[SourceTitle "playchess.com"]
[Source "ChessBase"]
[SourceQuality "1"]
[BlackTeam "Pardubice"]
[TimeControl "40/5400+30:1800+30"]

1. c4 {[%emt 0:00:00]} e6 {[%emt 0:00:52]} 2. Nc3 {[%emt 0:00:00]} d5 {[%emt 0:00:45]} 3. d4 {[%emt 0:00:00]} Nf6 {[%emt 0:01:07]} 4. cxd5 {[%emt 0:00:02]} exd5 {[%emt 0:00:06]} 5. Bg5 {[%emt 0:00:09]} c6 {[%emt 0:01:03]} 6. e3 {[%emt 0:00:11]} Be7 {[%emt 0:00:07]} 7. Bd3 {[%emt 0:00:38]} Nbd7 {[%emt 0:00:28]} 8. Nge2 {[%emt 0:00:38]} Nf8 {[%emt 0:01:55]} 9. O-O {[%emt 0:07:38]} Ne6 {[%emt 0:00:23]} 10. Bh4 {[%emt 0:00:37]} O-O {[%emt 0:02:26]} 11. f3 {[%emt 0:13:24]} b5 {[%emt 0:06:54]} 12. Rc1 {[%emt 0:04:07]} g6 {[%emt 0:13:58]} 13. Qd2 {[%emt 0:18:07]} Re8 {[%emt 0:18:29]} 14. Kh1 {[%emt 0:10:43]} Bb7 {[%emt 0:04:54]} 15. Nf4 {[%emt 0:09:27]} Nxf4 {[%emt 0:01:51]} 16. exf4 {[%emt 0:00:12]} Nh5 {[%emt 0:00:29]} 17. Bxe7 {[%emt 0:05:19]} Qxe7 {[%emt 0:00:03]} 18. Ne2 {[%emt 0:05:43]} Qh4 {[%emt 0:08:30]} 19. Kg1 {[%emt 0:06:33]} Re7 {[%emt 0:02:48]} 20. g3 {[%emt 0:05:25]} Qf6 {[%emt 0:06:23]} 21. f5 {[%emt 0:03:35]} Rae8 {[%emt 0:08:11]} 22. g4 {[%emt 0:00:56]} Ng7 {[%emt 0:00:12]} 23. g5 {[%emt 0:02:03]} Rxe2 {[%emt 0:00:28]} 24. Bxe2 {[%emt 0:00:07]} Qxf5 {[%emt 0:00:05]} 25. Bd3 {[%emt 0:01:35]} Qh3 {[%emt 0:02:10]} 26. Rce1 {[%emt 0:00:29]} Re6 {[%emt 0:08:00]} 27. Qf4 {[%emt 0:01:28]} Nh5 {[%emt 0:05:34]} 28. Qg4 {[%emt 0:02:40]} Qxg4+ {[%emt 0:00:09]} 29. fxg4 {[%emt 0:00:05]} Nf4 {[%emt 0:01:01]} 30. Rxe6 {[%emt 0:01:02]} Nxe6 {[%emt 0:00:02]} 31. b4 {[%emt 0:01:22]} Nxd4 {[%emt 0:02:00]} 32. Kf2 {[%emt 0:00:13]} Ne6 {[%emt 0:00:24]} 33. h4 {[%emt 0:00:20]} Kf8 {[%emt 0:00:39]} 34. Rc1 {[%emt 0:00:52]} Ke7 {[%emt 0:00:13]} 35. Ke3 {[%emt 0:00:31]} Kd6 {[%emt 0:01:08]} 36. Rf1 {[%emt 0:00:10]} Ke7 {[%emt 0:00:17]} 37. Rc1 {[%emt 0:00:24]} Kd6 {[%emt 0:00:13]} 38. Rf1 {[%emt 0:00:33]} 1/2-1/2

[Event "CZE Extraliga 2019-20"]
[Site "Czech Republic"]
[Date "2019.10.12"]
[Round "1.2"]
[White "Kozak, Adam"]
[Black "Kantans, Toms"]
[Result "1/2-1/2"]
[ECO "A37"]
[WhiteElo "2512"]
[BlackElo "2484"]
[Annotator "ChessBase"]
[PlyCount "158"]
[EventDate "2019.09.15"]
[EventType "team-tourn"]
[EventCountry "CZE"]
[SourceTitle "playchess.com"]
[Source "ChessBase"]
[SourceQuality "1"]
[WhiteTeam "Kromeriz"]
[BlackTeam "Turnov"]
[TimeControl "40/5400+30:1800+30"]

1. Nf3 {[%emt 0:00:00]} c5 {[%emt 0:00:00]} 2. c4 {[%emt 0:00:00]} Nc6 {[%emt 0:00:00]} 3. g3 {[%emt 0:00:12]} g6 {[%emt 0:00:32]} 4. Bg2 {[%emt 0:00:19]} Bg7 {[%emt 0:00:06]} 5. Nc3 {[%emt 0:00:28]} e6 {[%emt 0:00:27]} 6. d4 {[%emt 0:06:32]} cxd4 {[%emt 0:00:11]} 7. Nb5 {[%emt 0:00:05]} d5 {[%emt 0:01:03]} 8. cxd5 {[%emt 0:00:08]} exd5 {[%emt 0:00:11]} 9. O-O {[%emt 0:02:17]} Nge7 {[%emt 0:00:26]} 10. Nbxd4 {[%emt 0:04:21]} O-O {[%emt 0:01:44]} 11. Be3 {[%emt 0:00:03]} Re8 {[%emt 0:06:49]} 12. Re1 {[%emt 0:04:09]} Bf5 {[%emt 0:07:05]} 13. Nxc6 {[%emt 0:09:43]} Nxc6 {[%emt 0:00:28]} 14. Nd4 {[%emt 0:00:10]} Be4 {[%emt 0:04:47]} 15. Nxc6 {[%emt 0:04:56]} bxc6 {[%emt 0:00:06]} 16. Bd4 {[%emt 0:00:31]} Bxd4 {[%emt 0:14:16]} 17. Qxd4 {[%emt 0:00:20]} Qb6 {[%emt 0:01:15]} 18. Qd2 {[%emt 0:13:40]} d4 {[%emt 0:06:48]} 19. Rac1 {[%emt 0:03:15]} c5 {[%emt 0:06:31]} 20. Rc4 {[%emt 0:08:45]} a5 {[%emt 0:00:52]} 21. Rec1 {[%emt 0:08:25]} Bxg2 {[%emt 0:00:26]} 22. Kxg2 {[%emt 0:00:09]} Re5 {[%emt 0:00:10]} 23. f4 {[%emt 0:11:49]} Re3 {[%emt 0:05:10]} 24. Rxc5 {[%emt 0:00:19]} Rae8 {[%emt 0:07:05]} 25. Kf2 {[%emt 0:04:18]} Rxe2+ {[%emt 0:06:28]} 26. Qxe2 {[%emt 0:00:07]} Rxe2+ {[%emt 0:00:03]} 27. Kxe2 {[%emt 0:00:10]} Qxb2+ {[%emt 0:00:02]} 28. R1c2 {[%emt 0:14:09]} Qa3 {[%emt 0:00:07]} 29. Ke1 {[%emt 0:00:41]} d3 {[%emt 0:04:53]} 30. R2c3 {[%emt 0:00:45]} Qxa2 {[%emt 0:00:35]} 31. Rxd3 {[%emt 0:00:23]} a4 {[%emt 0:00:47]} 32. Rd2 {[%emt 0:04:18]} Qb1+ {[%emt 0:01:52]} 33. Ke2 {[%emt 0:00:18]} Qg1 {[%emt 0:04:15]} 34. Rc8+ {[%emt 0:00:02]} Kg7 {[%emt 0:00:04]} 35. Kd3 {[%emt 0:01:08]} h5 {[%emt 0:02:55]} 36. Rc3 {[%emt 0:00:33]} Qb1+ {[%emt 0:01:32]} 37. Kc4 {[%emt 0:00:31]} a3 {[%emt 0:02:55]} 38. Rcc2 {[%emt 0:00:06]} Kf6 {[%emt 0:02:55]} 39. Ra2 {[%emt 0:00:52]} Kf5 {[%emt 0:01:54]} 40. Kc3 {[%emt 0:00:30]} Kg4 {[%emt 0:01:36]} 41. Rdc2 {[%emt 0:02:32]} h4 {[%emt 0:01:57]} 42. gxh4 {[%emt 0:00:54]} Qe1+ {[%emt 0:00:31]} 43. Kb3 {[%emt 0:00:32]} Kxf4 {[%emt 0:06:31]} 44. Rxa3 {[%emt 0:02:36]} Qb1+ {[%emt 0:00:51]} 45. Kc3 {[%emt 0:00:42]} Kg4 {[%emt 0:01:58]} 46. Ra4+ {[%emt 0:03:26]} Kh5 {[%emt 0:00:05]} 47. Rf4 {[%emt 0:11:51]} f5 {[%emt 0:00:19]} 48. Rcf2 {[%emt 0:00:16]} Qd1 {[%emt 0:00:14]} 49. Rf1 {[%emt 0:00:51]} Qe2 {[%emt 0:00:18]} 50. R1f2 {[%emt 0:00:10]} Qe3+ {[%emt 0:00:06]} 51. Kc2 {[%emt 0:00:14]} Kh6 {[%emt 0:00:20]} 52. Kd1 {[%emt 0:00:34]} Qh3 {[%emt 0:00:27]} 53. Ke2 {[%emt 0:00:54]} Kg7 54. Ra4 {[%emt 0:00:53]} Qc3 {[%emt 0:05:15]} 55. Raf4 {[%emt 0:00:14]} Kh6 {[%emt 0:00:05]} 56. Kf1 {[%emt 0:00:28]} Qh8 {[%emt 0:03:21]} 57. Kg2 {[%emt 0:01:10]} Kg7 {[%emt 0:00:05]} 58. Ra4 {[%emt 0:00:30]} Qh5 {[%emt 0:01:19]} 59. Ra7+ {[%emt 0:00:15]} Kh6 {[%emt 0:01:23]} 60. Ra4 {[%emt 0:00:11]} Qd1 {[%emt 0:00:05]} 61. Raf4 {[%emt 0:00:11]} Kg7 {[%emt 0:00:34]} 62. Rf1 {[%emt 0:00:59]} Qd8 {[%emt 0:00:39]} 63. R1f2 {[%emt 0:00:13]} Kf7 {[%emt 0:00:07]} 64. Kg3 {[%emt 0:00:57]} Ke6 {[%emt 0:00:26]} 65. Re2+ {[%emt 0:00:13]} Kf6 {[%emt 0:00:05]} 66. Ref2 {[%emt 0:00:05]} Qb8 {[%emt 0:01:01]} 67. Kg2 {[%emt 0:00:04]} Qb7+ {[%emt 0:00:28]} 68. Kg1 {[%emt 0:00:16]} Qd5 {[%emt 0:00:26]} 69. R2f3 {[%emt 0:00:41]} Qc5+ {[%emt 0:00:43]} 70. Kg2 {[%emt 0:00:04]} Qc2+ {[%emt 0:00:36]} 71. Kg1 {[%emt 0:00:24]} Qb1+ {[%emt 0:01:09]} 72. Kg2 {[%emt 0:00:06]} Qa2+ {[%emt 0:00:04]} 73. Kg1 {[%emt 0:00:08]} Qa7+ {[%emt 0:00:06]} 74. Kg2 {[%emt 0:00:07]} Qh7 {[%emt 0:00:35]} 75. Kg3 {[%emt 0:00:01]} Qh8 {[%emt 0:00:46]} 76. Ra3 {[%emt 0:00:17]} Qb8 {[%emt 0:00:26]} 77. Raf3 {[%emt 0:00:23]} Qe5 {[%emt 0:01:15]} 78. Kg2 {[%emt 0:00:11]} Qe2+ {[%emt 0:00:12]} 79. Kg1 {[%emt 0:00:09]} Qe1+ {[%emt 0:00:52]} 1/2-1/2

[Event "CZE Extraliga 2019-20"]
[Site "Czech Republic"]
[Date "2019.10.12"]
[Round "1.2"]
[White "Druska, Juraj"]
[Black "Blahynka, Martin"]
[Result "1-0"]
[ECO "C47"]
[WhiteElo "2472"]
[BlackElo "2423"]
[Annotator "ChessBase"]
[PlyCount "81"]
[EventDate "2019.09.15"]
[EventType "team-tourn"]
[EventCountry "CZE"]
[SourceTitle "playchess.com"]
[Source "ChessBase"]
[SourceQuality "1"]
[BlackTeam "Duras"]
[TimeControl "40/5400+30:1800+30"]

1. e4 {[%emt 0:00:00]} e5 {[%emt 0:00:00]} 2. Nf3 {[%emt 0:00:00]} Nc6 {[%emt 0:00:00]} 3. Nc3 {[%emt 0:00:00]} Nf6 {[%emt 0:00:01]} 4. d4 {[%emt 0:00:00]} exd4 {[%emt 0:01:22]} 5. Nxd4 {[%emt 0:00:00]} Bb4 {[%emt 0:00:31]} 6. Nxc6 {[%emt 0:00:04]} bxc6 {[%emt 0:00:05]} 7. Bd3 {[%emt 0:00:07]} d5 {[%emt 0:00:42]} 8. exd5 {[%emt 0:00:11]} cxd5 {[%emt 0:01:16]} 9. O-O {[%emt 0:00:11]} O-O {[%emt 0:00:04]} 10. Bg5 {[%emt 0:00:05]} c6 {[%emt 0:00:40]} 11. Qf3 {[%emt 0:00:06]} h6 {[%emt 0:03:38]} 12. Bxf6 {[%emt 0:00:20]} Qxf6 {[%emt 0:00:06]} 13. Qxf6 {[%emt 0:00:05]} gxf6 {[%emt 0:00:06]} 14. Ne2 {[%emt 0:00:07]} Bd6 {[%emt 0:10:33]} 15. Nd4 {[%emt 0:02:10]} c5 {[%emt 0:33:49]} 16. Nf5 {[%emt 0:00:24]} Bxf5 {[%emt 0:00:14]} 17. Bxf5 {[%emt 0:00:08]} Rab8 {[%emt 0:07:18]} 18. b3 {[%emt 0:02:10]} Bc7 {[%emt 0:08:07]} 19. Rad1 {[%emt 0:04:25]} d4 {[%emt 0:01:15]} 20. Rd3 {[%emt 0:02:24]} Rfe8 {[%emt 0:03:01]} 21. Rh3 {[%emt 0:00:58]} Kg7 {[%emt 0:01:52]} 22. Bd3 {[%emt 0:00:49]} Re7 {[%emt 0:09:07]} 23. f4 {[%emt 0:01:15]} Rbe8 {[%emt 0:04:45]} 24. Rh5 {[%emt 0:03:21]} Bb6 {[%emt 0:03:43]} 25. a4 {[%emt 0:06:37]} Re3 {[%emt 0:05:07]} 26. Ra1 {[%emt 0:15:21]} a5 {[%emt 0:04:12]} 27. Rf1 {[%emt 0:00:06]} Rc8 {[%emt 0:01:05]} 28. Kf2 {[%emt 0:14:23]} Rce8 {[%emt 0:00:22]} 29. Rg1 {[%emt 0:00:05]} Bc7 {[%emt 0:00:56]} 30. Rxc5 {[%emt 0:08:25]} Bxf4 {[%emt 0:00:04]} 31. g3 {[%emt 0:00:04]} Re2+ {[%emt 0:00:51]} 32. Bxe2 {[%emt 0:00:06]} Be3+ {[%emt 0:00:03]} 33. Kg2 {[%emt 0:01:19]} Bxg1 {[%emt 0:00:09]} 34. Bd3 {[%emt 0:00:04]} Be3 {[%emt 0:01:11]} 35. Rxa5 {[%emt 0:00:06]} Bd2 {[%emt 0:00:33]} 36. Rd5 {[%emt 0:01:35]} Bc3 {[%emt 0:00:05]} 37. a5 {[%emt 0:00:11]} Kf8 {[%emt 0:00:27]} 38. a6 {[%emt 0:02:07]} Ke7 {[%emt 0:00:04]} 39. Rb5 {[%emt 0:01:49]} Ra8 {[%emt 0:01:11]} 40. Rb7+ {[%emt 0:00:08]} Ke6 {[%emt 0:00:18]} 41. Bc4+ {[%emt 0:32:46]} 1-0

[Event "CZE Extraliga 2019-20"]
[Site "Czech Republic"]
[Date "2019.10.12"]
[Round "1.2"]
[White "Pulpan, Jakub"]
[Black "Stocek, Jiri"]
[Result "0-1"]
[ECO "A05"]
[WhiteElo "2421"]
[BlackElo "2569"]
[Annotator "ChessBase"]
[PlyCount "158"]
[EventDate "2019.09.15"]
[EventType "team-tourn"]
[EventCountry "CZE"]
[SourceTitle "playchess.com"]
[Source "ChessBase"]
[SourceQuality "1"]
[TimeControl "40/5400+30:1800+30"]

1. Nf3 {[%emt 0:00:00]} Nf6 {[%emt 0:01:20]} 2. b3 {[%emt 0:00:26]} d6 {[%emt 0:04:08]} 3. d4 {[%emt 0:00:47]} Bf5 {[%emt 0:00:43]} 4. Bb2 {[%emt 0:02:00]} Nbd7 {[%emt 0:00:40]} 5. g3 {[%emt 0:04:14]} e5 {[%emt 0:07:37]} 6. c4 {[%emt 0:11:15]} h6 {[%emt 0:05:24]} 7. d5 {[%emt 0:14:12]} Be7 {[%emt 0:06:08]} 8. Bg2 {[%emt 0:01:36]} O-O {[%emt 0:01:29]} 9. O-O {[%emt 0:03:19]} Bh7 {[%emt 0:04:21]} 10. Ne1 {[%emt 0:09:40]} a5 {[%emt 0:14:23]} 11. Nc3 {[%emt 0:04:12]} Nc5 {[%emt 0:00:25]} 12. Nd3 {[%emt 0:06:18]} Nxd3 {[%emt 0:10:04]} 13. exd3 {[%emt 0:00:03]} Nd7 {[%emt 0:00:51]} 14. d4 {[%emt 0:07:44]} exd4 {[%emt 0:03:13]} 15. Qxd4 {[%emt 0:00:30]} Bf6 {[%emt 0:00:12]} 16. Qd2 {[%emt 0:00:52]} Nc5 {[%emt 0:01:20]} 17. Nb5 {[%emt 0:02:31]} Bxb2 {[%emt 0:00:24]} 18. Qxb2 {[%emt 0:00:03]} Re8 {[%emt 0:03:49]} 19. a3 {[%emt 0:02:49]} Qd7 {[%emt 0:04:30]} 20. b4 {[%emt 0:03:25]} Ne4 {[%emt 0:09:49]} 21. Rfe1 {[%emt 0:02:39]} Nf6 {[%emt 0:01:19]} 22. Qd4 {[%emt 0:03:54]} Kf8 {[%emt 0:05:46]} 23. h4 {[%emt 0:01:54]} Bg6 {[%emt 0:02:04]} 24. Rxe8+ {[%emt 0:03:59]} Nxe8 {[%emt 0:00:38]} 25. Re1 {[%emt 0:01:06]} Nf6 {[%emt 0:01:49]} 26. Bf1 {[%emt 0:01:45]} Kg8 {[%emt 0:01:14]} 27. Qe3 {[%emt 0:02:59]} axb4 {[%emt 0:02:50]} 28. axb4 {[%emt 0:00:03]} Re8 {[%emt 0:00:33]} 29. Qd2 {[%emt 0:00:52]} Rxe1 {[%emt 0:01:18]} 30. Qxe1 {[%emt 0:00:03]} Bf5 {[%emt 0:00:43]} 31. Qe3 {[%emt 0:02:01]} Qc8 {[%emt 0:01:32]} 32. Qd4 {[%emt 0:01:43]} Bd7 {[%emt 0:00:12]} 33. c5 {[%emt 0:01:47]} Bxb5 {[%emt 0:00:41]} 34. Bxb5 {[%emt 0:00:03]} Qf5 {[%emt 0:01:13]} 35. cxd6 {[%emt 0:01:52]} cxd6 {[%emt 0:00:12]} 36. Bc4 {[%emt 0:02:27]} Qf3 {[%emt 0:01:40]} 37. Qb6 {[%emt 0:01:55]} Ng4 {[%emt 0:01:17]} 38. Qd4 {[%emt 0:01:21]} Ne5 {[%emt 0:00:34]} 39. Bf1 {[%emt 0:00:22]} Qb3 {[%emt 0:00:54]} 40. Be2 {[%emt 0:00:47]} Qc2 {[%emt 0:01:27]} 41. Kf1 {[%emt 0:00:58]} Qb1+ {[%emt 0:12:06]} 42. Kg2 {[%emt 0:00:43]} Qe1 {[%emt 0:02:17]} 43. Bd1 {[%emt 0:04:15]} Nd7 {[%emt 0:11:31]} 44. Bg4 {[%emt 0:03:23]} Nf6 {[%emt 0:01:37]} 45. Bf3 {[%emt 0:00:40]} h5 {[%emt 0:01:00]} 46. Qc4 {[%emt 0:00:56]} Qe7 {[%emt 0:01:27]} 47. Qc8+ {[%emt 0:01:25]} Kh7 {[%emt 0:00:06]} 48. b5 {[%emt 0:01:00]} g6 {[%emt 0:00:16]} 49. b6 {[%emt 0:00:33]} Kg7 {[%emt 0:00:58]} 50. Qc7 {[%emt 0:01:15]} Kf8 {[%emt 0:00:56]} 51. Kf1 {[%emt 0:00:40]} Qd7 {[%emt 0:00:31]} 52. Qb8+ {[%emt 0:05:35]} Ke7 {[%emt 0:00:18]} 53. Kg2 {[%emt 0:00:27]} Qb5 {[%emt 0:01:26]} 54. Qxb7+ {[%emt 0:00:55]} Nd7 {[%emt 0:00:06]} 55. g4 {[%emt 0:02:22]} hxg4 {[%emt 0:00:57]} 56. Bxg4 {[%emt 0:00:06]} f5 {[%emt 0:00:04]} 57. Bf3 {[%emt 0:00:49]} Qxb6 {[%emt 0:00:09]} 58. Qc8 {[%emt 0:00:35]} Qd4 {[%emt 0:00:57]} 59. Qg8 {[%emt 0:04:12]} Qf6 {[%emt 0:00:19]} 60. Qh7+ {[%emt 0:01:52]} Kd8 {[%emt 0:02:02]} 61. Be2 {[%emt 0:03:00]} Nf8 {[%emt 0:00:14]} 62. Qa7 {[%emt 0:01:11]} Qxh4 {[%emt 0:00:37]} 63. Qb8+ {[%emt 0:00:36]} Ke7 {[%emt 0:00:07]} 64. Bb5 {[%emt 0:01:06]} Qg4+ {[%emt 0:00:46]} 65. Kh2 {[%emt 0:01:55]} Qf4+ {[%emt 0:00:13]} 66. Kg2 {[%emt 0:00:15]} Kf7 {[%emt 0:01:29]} 67. Be8+ {[%emt 0:01:58]} Kg8 {[%emt 0:00:12]} 68. Bc6 {[%emt 0:00:41]} Qg5+ 69. Kf1 {[%emt 0:00:27]} Qe7 {[%emt 0:00:37]} 70. Qa8 {[%emt 0:00:47]} Kf7 {[%emt 0:00:34]} 71. Qa1 {[%emt 0:00:25]} Nh7 {[%emt 0:00:32]} 72. Qh8 {[%emt 0:00:28]} Nf6 {[%emt 0:00:09]} 73. Qb8 {[%emt 0:00:37]} g5 {[%emt 0:00:36]} 74. Qh8 {[%emt 0:00:25]} Kg6 {[%emt 0:00:21]} 75. Qb8 {[%emt 0:00:37]} g4 {[%emt 0:00:23]} 76. Qh8 {[%emt 0:00:51]} f4 {[%emt 0:01:03]} 77. Qb8 {[%emt 0:00:29]} Kg5 {[%emt 0:00:58]} 78. Qh8 {[%emt 0:00:07]} f3 {[%emt 0:00:38]} 79. Bb5 {[%emt 0:00:07]} Qa7 {[%emt 0:00:57]} 0-1

[Event "CZE Extraliga 2019-20"]
[Site "Czech Republic"]
[Date "2019.10.12"]
[Round "1.3"]
[White "SLA5 Heberla Bartlomiej GM"]
[Black "DPP6 Burdalev Kirill FM"]
[Result "1-0"]
[ECO "B13"]
[WhiteElo "2552"]
[BlackElo "2406"]
[Annotator "ChessBase"]
[PlyCount "65"]
[EventDate "2019.09.15"]
[EventType "team-tourn"]
[EventCountry "CZE"]
[SourceTitle "playchess.com"]
[Source "ChessBase"]
[SourceQuality "1"]
[TimeControl "40/5400+30:1800+30"]

1. e4 {[%emt 0:00:00]} c6 {[%emt 0:00:00]} 2. d4 {[%emt 0:00:00]} d5 {[%emt 0:00:00]} 3. exd5 {[%emt 0:00:15]} cxd5 {[%emt 0:00:00]} 4. Bd3 {[%emt 0:00:06]} Nc6 {[%emt 0:00:05]} 5. c3 {[%emt 0:00:05]} Qc7 {[%emt 0:00:31]} 6. Ne2 {[%emt 0:00:07]} Bg4 {[%emt 0:00:45]} 7. O-O {[%emt 0:00:05]} e6 {[%emt 0:08:51]} 8. Qe1 {[%emt 0:00:07]} Bh5 {[%emt 0:00:52]} 9. Nf4 {[%emt 0:10:29]} Nf6 {[%emt 0:00:04]} 10. Nxh5 {[%emt 0:00:41]} Nxh5 {[%emt 0:00:07]} 11. g3 {[%emt 0:00:16]} g6 {[%emt 0:07:03]} 12. f4 {[%emt 0:11:00]} Be7 {[%emt 0:01:45]} 13. Nd2 {[%emt 0:00:29]} Ng7 {[%emt 0:04:44]} 14. Nf3 {[%emt 0:00:10]} h5 {[%emt 0:00:19]} 15. Ne5 {[%emt 0:01:59]} Nf5 {[%emt 0:01:05]} 16. Bd2 {[%emt 0:03:05]} Kf8 {[%emt 0:02:00]} 17. Nxg6+ {[%emt 0:18:36]} fxg6 {[%emt 0:00:37]} 18. Qxe6 {[%emt 0:00:03]} Qd6 {[%emt 0:04:44]} 19. Bxf5 {[%emt 0:00:33]} gxf5 {[%emt 0:00:02]} 20. Qxf5+ {[%emt 0:00:09]} Kg7 {[%emt 0:00:02]} 21. Rae1 {[%emt 0:01:07]} Raf8 {[%emt 0:00:08]} 22. Qh3 {[%emt 0:00:08]} Bf6 {[%emt 0:26:28]} 23. f5 {[%emt 0:01:55]} Nd8 {[%emt 0:04:30]} 24. Bf4 {[%emt 0:02:48]} Qb6 {[%emt 0:00:23]} 25. g4 {[%emt 0:01:18]} Rfg8 {[%emt 0:08:16]} 26. g5 {[%emt 0:03:06]} Kf8 {[%emt 0:04:08]} 27. Qe3 {[%emt 0:01:55]} Kf7 {[%emt 0:04:53]} 28. Kh1 {[%emt 0:01:48]} Qxb2 {[%emt 0:02:09]} 29. Rb1 {[%emt 0:08:18]} Qa3 {[%emt 0:04:02]} 30. Rxb7+ {[%emt 0:00:54]} Be7 {[%emt 0:02:38]} 31. Rd7 {[%emt 0:04:09]} Ke8 {[%emt 0:01:05]} 32. Bd6 {[%emt 0:00:34]} Kxd7 {[%emt 0:00:44]} 33. Qxe7+ {[%emt 0:00:05]} 1-0

[Event "CZE Extraliga 2019-20"]
[Site "Czech Republic"]
[Date "2019.10.12"]
[Round "1.3"]
[White "Shevchenko, Kirill"]
[Black "Fedorov, Alexei"]
[Result "0-1"]
[ECO "E90"]
[WhiteElo "2542"]
[BlackElo "2551"]
[Annotator "ChessBase"]
[PlyCount "114"]
[EventDate "2019.09.15"]
[EventType "team-tourn"]
[EventCountry "CZE"]
[SourceTitle "playchess.com"]
[Source "ChessBase"]
[SourceQuality "1"]
[WhiteTeam "Pardubice"]
[TimeControl "40/5400+30:1800+30"]

1. d4 {[%emt 0:00:00]} Nf6 {[%emt 0:00:00]} 2. c4 {[%emt 0:00:00]} g6 {[%emt 0:00:00]} 3. Nc3 {[%emt 0:00:00]} Bg7 {[%emt 0:00:00]} 4. e4 {[%emt 0:00:00]} d6 {[%emt 0:00:00]} 5. Nf3 {[%emt 0:00:00]} O-O {[%emt 0:00:07]} 6. Be3 {[%emt 0:00:00]} e5 {[%emt 0:01:23]} 7. dxe5 {[%emt 0:00:35]} dxe5 {[%emt 0:00:11]} 8. Qc2 {[%emt 0:00:09]} Nc6 {[%emt 0:07:00]} 9. Rd1 {[%emt 0:02:40]} Bd7 {[%emt 0:01:15]} 10. Be2 {[%emt 0:18:52]} Qc8 {[%emt 0:00:42]} 11. h3 {[%emt 0:10:36]} Be6 {[%emt 0:06:02]} 12. Nd5 {[%emt 0:02:59]} Nd7 {[%emt 0:07:50]} 13. h4 {[%emt 0:08:36]} Bg4 {[%emt 0:11:41]} 14. h5 {[%emt 0:05:31]} Bxf3 {[%emt 0:10:44]} 15. Bxf3 {[%emt 0:02:24]} Re8 {[%emt 0:01:42]} 16. hxg6 {[%emt 0:13:54]} hxg6 {[%emt 0:00:17]} 17. Bg5 {[%emt 0:01:08]} Nd4 {[%emt 0:07:38]} 18. Qc3 {[%emt 0:02:33]} c6 {[%emt 0:04:47]} 19. Ne7+ {[%emt 0:01:11]} Rxe7 {[%emt 0:00:06]} 20. Bxe7 {[%emt 0:00:03]} Qe8 {[%emt 0:03:08]} 21. Bg5 {[%emt 0:02:37]} Nc5 {[%emt 0:04:51]} 22. b3 {[%emt 0:09:18]} f5 {[%emt 0:11:08]} 23. Bh6 {[%emt 0:10:08]} Bf6 {[%emt 0:03:24]} 24. Bc1 {[%emt 0:01:24]} Rd8 {[%emt 0:08:47]} 25. Ba3 {[%emt 0:02:39]} Nce6 {[%emt 0:01:19]} 26. Bc1 {[%emt 0:07:18]} f4 {[%emt 0:05:53]} 27. Bg4 {[%emt 0:00:00]} Ng5 {[%emt 0:00:35]} 28. f3 {[%emt 0:00:00]} Be7 {[%emt 0:00:58]} 29. a3 {[%emt 0:00:00]} c5 {[%emt 0:00:15]} 30. Kf2 {[%emt 0:00:00]} Qc6 {[%emt 0:00:19]} 31. Bb2 {[%emt 0:00:07]} Nh7 {[%emt 0:01:25]} 32. Rd3 {[%emt 0:00:30]} Nf6 {[%emt 0:00:16]} 33. Bh3 {[%emt 0:00:02]} b6 {[%emt 0:00:22]} 34. Rc1 {[%emt 0:01:14]} Kg7 {[%emt 0:00:11]} 35. Qe1 {[%emt 0:00:27]} a5 {[%emt 0:01:07]} 36. Kf1 {[%emt 0:00:31]} Rh8 {[%emt 0:00:28]} 37. Bxd4 {[%emt 0:00:06]} cxd4 {[%emt 0:00:24]} 38. Kg1 {[%emt 0:00:55]} Bxa3 {[%emt 0:00:14]} 39. c5 {[%emt 0:00:28]} Bxc1 {[%emt 0:00:27]} 40. Qxc1 {[%emt 0:00:17]} Qxc5 {[%emt 0:00:19]} 41. Qa1 {[%emt 0:30:25]} Re8 {[%emt 0:04:35]} 42. Rd1 {[%emt 0:00:00]} d3+ {[%emt 0:01:19]} 43. Kh2 {[%emt 0:00:00]} Rd8 {[%emt 0:01:19]} 44. Rc1 {[%emt 0:00:00]} Qd6 {[%emt 0:01:15]} 45. Qc3 {[%emt 0:00:00]} d2 {[%emt 0:05:05]} 46. Rd1 {[%emt 0:00:00]} Kf8 {[%emt 0:04:20]} 47. Qc4 {[%emt 0:00:00]} Qc5 {[%emt 0:00:40]} 48. Qe2 {[%emt 0:00:00]} Qb4 {[%emt 0:02:39]} 49. Be6 {[%emt 0:00:00]} Ke7 {[%emt 0:02:12]} 50. Bh3 {[%emt 0:00:00]} b5 {[%emt 0:02:04]} 51. Qf2 {[%emt 0:00:00]} Qd4 {[%emt 0:01:09]} 52. Qe2 {[%emt 0:00:00]} Qd3 {[%emt 0:00:09]} 53. Qf2 {[%emt 0:00:00]} Qe3 {[%emt 0:00:13]} 54. Qh4 {[%emt 0:00:00]} Kf7 {[%emt 0:00:27]} 55. Qg5 {[%emt 0:00:00]} Re8 {[%emt 0:00:37]} 56. Ra1 {[%emt 0:00:00]} Qe1 {[%emt 0:00:18]} 57. Rxa5 {[%emt 0:00:00]} Qg3+ {[%emt 0:00:05]} 0-1